Workbook

Sheet 农机员
A1: 唐山高新区老庄子镇2020.7.1--2020.12.31年满60周岁农机员生活补助核定公示表
A2: 填报单位（盖章）： | I2: 公示日期：
A3: 序号 | B3: 姓名 | C3: 原工作单位 | D3: 性别 | E3: 身份证号码 | F3: 银行卡号 | G3: 户口所在地（镇办、村） | H3: 公益服务认定时间 | I3: 公益服务认定年限 | J3: 月补助金额（元） | K3: 补贴月数 | L3: 补助总金额 | M3: 执行时间 | N3: 备注
A4: 1 | B4: 张子艳 | C4: 老庄子公社农机站 | D4: 男 | E4: 13022119520927**** | G4: 老庄子镇沙雾庄村 | H4: 73.4--83.5 | I4: 11 | J4: =I4*20 -> 220 | K4: 6 | L4: =J4*K4 -> 1320 | M4: 2020.7.1
A5: 2 | B5: 王胜海 | C5: 老庄子公社农机站 | D5: 男 | E5: 13022119500617**** | G5: 老庄子镇沙雾庄村 | H5: 70.3--85.12 | I5: 16 | J5: =I5*20 -> 320 | K5: 6 | L5: 1920 | M5: 2020.7.1
A6: 3 | B6: 尹贺禄 | C6: 老庄子公社农机站 | D6: 男 | E6: 13022119550302**** | G6: 老庄子镇沙雾庄村 | H6: 81.1-85.12 | I6: 5 | J6: 100 | K6: 6 | L6: 600 | M6: 2020.7.1
A7: 4 | B7: 王德贵 | C7: 老庄子公社农机站 | D7: 男 | E7: 13022119390707**** | G7: 老庄子镇沙雾庄村 | H7: 76.5--85.12 | I7: 10 | J7: 200 | K7: 6 | L7: 1200 | M7: 2020.7.1
A8: 5 | B8: 张全 | C8: 老庄子公社农机站 | D8: 男 | E8: 13022119570807**** | G8: 老庄子镇沙雾庄村 | H8: 75.9--85.12 | I8: 11 | J8: 220 | K8: 6 | L8: 1320 | M8: 2020.7.1
A9: 6 | B9: 贾振江 | C9: 老庄子公社农机站 | D9: 男 | E9: 13022119520810**** | G9: 老庄子镇陈家庄村 | H9: 70.9--85.6 | I9: 15 | J9: 300 | K9: 6 | L9: 1800 | M9: 2020.7.1
A10: 7 | B10: 王振东 | C10: 老庄子公社农机站 | D10: 男 | E10: 13022119601102**** | G10: 老庄子镇陈家庄村 | H10: 78.12--85.12 | I10: 8 | J10: 160 | K10: 1 | L10: 160 | M10: 2020.12.1 | N10: 2020年11月2日年满60周岁，12月份开始发放生活补贴
A11: 8 | B11: 荣振齐 | C11: 老庄子公社农机站 | D11: 男 | E11: 13022119571118**** | G11: 老庄子镇陈家庄村 | H11: 81.5--85.12 | I11: 5 | J11: 100 | K11: 6 | L11: 600 | M11: 2020.7.1
A12: 9 | B12: 王国利 | C12: 老庄子公社农机站 | D12: 男 | E12: 13022119580318**** | G12: 老庄子镇陈家庄村 | H12: 76.4--85.12 | I12: 10 | J12: 200 | K12: 6 | L12: 1200 | M12: 2020.7.1
A13: 10 | B13: 张振国 | C13: 老庄子公社农机站 | D13: 男 | E13: 13022119540624**** | G13: 老庄子镇陈家庄村 | H13: 79.5--85.5 | I13: 7 | J13: 140 | K13: 6 | L13: 840 | M13: 2020.7.1
A14: 11 | B14: 董清朝 | C14: 老庄子公社农机站 | D14: 男 | E14: 13022119570225**** | G14: 老庄子镇魏庄子村 | H14: 76.3--85.12 | I14: 10 | J14: 200 | K14: 6 | L14: 1200 | M14: 2020.7.1
A15: 12 | B15: 王春开 | C15: 老庄子公社农机站 | D15: 男 | E15: 13022119440914**** | G15: 老庄子镇魏庄子村 | H15: 71.6--84.8 | I15: 14 | J15: 280 | K15: 6 | L15: 1680 | M15: 2020.7.1
A16: 13 | B16: 狄占海 | C16: 老庄子公社农机站 | D16: 男 | E16: 13022119570622**** | G16: 老庄子镇魏庄子村 | H16: 76.8--85.12 | I16: 10 | J16: 200 | K16: 6 | L16: 1200 | M16: 2020.7.1
A17: 14 | B17: 韩连平 | C17: 老庄子公社农机站 | D17: 男 | E17: 13022119561111**** | G17: 老庄子镇魏庄子村 | H17: 75.3--85.12 | I17: 11 | J17: 220 | K17: 6 | L17: 1320 | M17: 2020.7.1
A18: 15 | B18: 李广文 | C18: 老庄子公社农机站 | D18: 男 | E18: 13022119560603**** | G18: 老庄子镇新村 | H18: 76.4--85.12 | I18: 10 | J18: 200 | K18: 6 | L18: 1200 | M18: 2020.7.1
A19: 16 | B19: 侯保申 | C19: 老庄子公社农机站 | D19: 男 | E19: 13022119571007**** | G19: 老庄子镇新村 | H19: 77.3--85.12 | I19: 9 | J19: 180 | K19: 6 | L19: 1080 | M19: 2020.7.1
A20: 17 | B20: 吴振洲 | C20: 毛家坨公社农机站 | D20: 男 | E20: 13022119540403**** | G20: 老庄子镇前冯各庄村 | H20: 78.3--85.12 | I20: 8 | J20: 160 | K20: 6 | L20: 960 | M20: 2020.7.1
A21: 18 | B21: 王贺 | C21: 毛家坨公社农机站 | D21: 男 | E21: 13022119551101**** | G21: 老庄子镇前冯各庄村 | H21: 77.5--85.12 | I21: 9 | J21: 180 | K21: 6 | L21: 1080 | M21: 2020.7.1
A22: 19 | B22: 姜德存 | C22: 毛家坨公社农机站 | D22: 男 | E22: 13022119540921**** | G22: 老庄子镇后冯各庄村 | H22: 78.8--85.12 | I22: 8 | J22: =I22*20 -> 160 | K22: 6 | L22: 960 | M22: 2020.7.1
A23: 20 | B23: 周静春 | C23: 毛家坨公社农机站 | D23: 男 | E23: 13022119550726**** | G23: 老庄子镇后冯各庄村 | H23: 74.4--85.12 | I23: 12 | J23: =I23*20 -> 240 | K23: 6 | L23: 1440 | M23: 2020.7.1
A24: 21 | B24: 董双喜 | C24: 毛家坨公社农机站 | D24: 男 | E24: 13022119580422**** | G24: 老庄子镇后冯各庄村 | H24: 76.5--85.12 | I24: 10 | J24: 200 | K24: 6 | L24: 1200 | M24: 2020.7.1
A25: 22 | B25: 董福平 | C25: 毛家坨公社农机站 | D25: 男 | E25: 13022119540705**** | G25: 老庄子镇后冯各庄村 | H25: 75.6--85.12 | I25: 11 | J25: 220 | K25: 6 | L25: 1320 | M25: 2020.7.1
A26: 23 | B26: 田久贵 | C26: 小城子公社农机站 | D26: 男 | E26: 13022119490712**** | G26: 老庄子镇党家庄村 | H26: 73.4--85.12 | I26: 13 | J26: 260 | K26: 6 | L26: 1560 | M26: 2020.7.1
A27: 24 | B27: 党继锁 | C27: 小城子公社农机站 | D27: 男 | E27: 13022119500808**** | G27: 老庄子镇党家庄村 | H27: 79.5--83.11 | I27: 5 | J27: 100 | K27: 6 | L27: 600 | M27: 2020.7.1
A28: 25 | B28: 柳福顺 | C28: 小城子公社农机站 | D28: 男 | E28: 13022119520909**** | G28: 老庄子镇党家庄村 | H28: 74.3--85.12 | I28: 12 | J28: 240 | K28: 6 | L28: 1440 | M28: 2020.7.1
A29: 26 | B29: 田长兴 | C29: 小城子公社农机站 | D29: 男 | E29: 13022119531009**** | G29: 老庄子镇党家庄村 | H29: 76.3--84.11 | I29: 9 | J29: 180 | K29: 6 | L29: 1080 | M29: 2020.7.1
A30: 27 | B30: 赵生儒 | C30: 小城子公社农机站 | D30: 男 | E30: 13022119450702**** | G30: 老庄子镇夏屋村 | H30: 73.5--82.11 | I30: 10 | J30: 200 | K30: 6 | L30: 1200 | M30: 2020.7.1
A31: 28 | B31: 赵生奎 | C31: 小城子公社农机站 | D31: 男 | E31: 13022119551125**** | G31: 老庄子镇夏屋村 | H31: 73.12--85.12 | I31: 13 | J31: 260 | K31: 6 | L31: 1560 | M31: 2020.7.1
A32: 29 | B32: 赵振双 | C32: 小城子公社农机站 | D32: 男 | E32: 13022119440625**** | G32: 老庄子镇夏屋村 | H32: 74.2--85.12 | I32: 12 | J32: 240 | K32: 6 | L32: 1440 | M32: 2020.7.1
A33: 30 | B33: 赵振奎 | C33: 小城子公社农机站 | D33: 男 | E33: 13022119560614**** | G33: 老庄子镇夏屋村 | H33: 75.2--82.12 | I33: 8 | J33: 160 | K33: 6 | L33: 960 | M33: 2020.7.1
A34: 31 | B34: 赵金科 | C34: 小城子公社农机站 | D34: 男 | E34: 13022119520816**** | G34: 老庄子镇瓦房庄村 | H34: 74.2--85.12 | I34: 12 | J34: 240 | K34: 6 | L34: 1440 | M34: 2020.7.1
A35: 32 | B35: 刘汉青 | C35: 小城子公社农机站 | D35: 男 | E35: 13022119580520**** | G35: 老庄子镇瓦房庄村 | H35: 77.2--85.12 | I35: 9 | J35: 180 | K35: 6 | L35: 1080 | M35: 2020.7.1
A36: 33 | B36: 陈合仁 | C36: 小城子公社农机站 | D36: 男 | E36: 13022119580327**** | G36: 老庄子镇瓦房庄村 | H36: 76.4--84.11 | I36: 9 | J36: 180 | K36: 6 | L36: 1080 | M36: 2020.7.1
A37: 34 | B37: 崔万岩 | C37: 小城子公社农机站 | D37: 男 | E37: 13022119560909**** | G37: 老庄子镇瓦房庄村 | H37: 74.10--84.9 | I37: 10 | J37: 200 | K37: 6 | L37: =J37*K37 -> 1200 | M37: 2020.7.1
A38: 35 | B38: 陈存仁 | C38: 小城子公社农机站 | D38: 男 | E38: 13022119390921**** | G38: 老庄子镇瓦房庄村 | H38: 73.8--84.11 | I38: 12 | J38: 240 | K38: 6 | L38: 1440 | M38: 2020.7.1
A39: 36 | B39: 陈计成 | C39: 小城子公社农机站 | D39: 男 | E39: 13022119550505**** | G39: 老庄子镇瓦房庄村 | H39: 73.6--84.6 | I39: 12 | J39: 240 | K39: 6 | L39: 1440 | M39: 2020.7.1
A40: 37 | B40: 陈相高 | C40: 小城子公社农机站 | D40: 男 | E40: 13022119440404**** | G40: 老庄子镇瓦房庄村 | H40: 73.4--84.9 | I40: 12 | J40: 240 | K40: 6 | L40: 1440 | M40: 2020.7.1
A41: 38 | B41: 张久华 | C41: 小城子公社农机站 | D41: 男 | E41: 13022119600911**** | G41: 老庄子镇瓦房庄村 | H41: 78.10--85.12 | I41: 8 | J41: 160 | K41: 3 | L41: =J41*K41 -> 480 | M41: 2020.10.1 | N41: 2020年9月11日年满60周岁，10月份开始发放生活补贴
A42: 39 | B42: 何守柱 | C42: 小城子公社农机站 | D42: 男 | E42: 13022119560217**** | G42: 老庄子镇李官屯村 | H42: 74.3--85.12 | I42: 12 | J42: 240 | K42: 6 | L42: 1440 | M42: 2020.7.1
A43: 40 | B43: 李应山 | C43: 小城子公社农机站 | D43: 男 | E43: 13022119510416**** | G43: 老庄子镇李官屯村 | H43: 74.2--84.12 | I43: 11 | J43: 220 | K43: 6 | L43: 1320 | M43: 2020.7.1
A44: 41 | B44: 李应才 | C44: 小城子公社农机站 | D44: 男 | E44: 13022119591010**** | G44: 老庄子镇李官屯村 | H44: 77.11--84.11 | I44: 8 | J44: 160 | K44: 6 | L44: 960 | M44: 2020.7.1
A45: 42 | B45: 李百云 | C45: 小城子公社农机站 | D45: 男 | E45: 13022119570326**** | G45: 老庄子镇李官屯村 | H45: 78.3--85.12 | I45: 8 | J45: 160 | K45: 6 | L45: 960 | M45: 2020.7.1
A46: 43 | B46: 李贺彩 | C46: 小城子公社农机站 | D46: 男 | E46: 13022119570907**** | G46: 老庄子镇李官屯村 | H46: 76.3--84.11 | I46: 9 | J46: 180 | K46: 6 | L46: 1080 | M46: 2020.7.1
A47: 44 | B47: 李昌润 | C47: 小城子公社农机站 | D47: 男 | E47: 13022119570820**** | G47: 老庄子镇李官屯村 | H47: 76.6--85.12 | I47: 10 | J47: 200 | K47: 6 | L47: 1200 | M47: 2020.7.1
A48: 45 | B48: 李柏金 | C48: 小城子公社农机站 | D48: 男 | E48: 13022119431104**** | G48: 老庄子镇李官屯村 | H48: 75.2--85.12 | I48: 11 | J48: 220 | K48: 6 | L48: 1320 | M48: 2020.7.1
A49: 46 | B49: 赵殿来 | C49: 老庄子公社农机站 | D49: 男 | E49: 13022119450103**** | G49: 老庄子镇周凤庄村 | H49: 73.7--85.12 | I49: 13 | J49: 260 | K49: 6 | L49: 1560 | M49: 2020.7.1
A50: 47 | B50: 张凤阁 | C50: 老庄子公社农机站 | D50: 男 | E50: 13022119540620**** | G50: 老庄子镇周凤庄村 | H50: 76.9--85.12 | I50: 10 | J50: 200 | K50: 6 | L50: 1200 | M50: 2020.7.1
A51: 48 | B51: 常金全 | C51: 老庄子公社农机站 | D51: 男 | E51: 13022119511004**** | G51: 老庄子镇周凤庄村 | H51: 73.9--85.12 | I51: 13 | J51: 260 | K51: 6 | L51: 1560 | M51: 2020.7.1
A52: 49 | B52: 刘景维 | C52: 老庄子公社农机站 | D52: 男 | E52: 13022119571220**** | G52: 老庄子镇七王庄村 | H52: 76.1--85.12 | I52: 10 | J52: 200 | K52: 6 | L52: 1200 | M52: 2020.7.1
A53: 50 | B53: 高振良 | C53: 老庄子公社农机站 | D53: 男 | E53: 13022119591002**** | G53: 老庄子镇七王庄村 | H53: 77.11--85.12 | I53: 9 | J53: 180 | K53: 6 | L53: 1080 | M53: 2020.7.1
A54: 51 | B54: 徐宝有 | C54: 老庄子公社农机站 | D54: 男 | E54: 13022119570914**** | G54: 老庄子镇七王庄村 | H54: 79.3--85.12 | I54: 7 | J54: 140 | K54: 6 | L54: 840 | M54: 2020.7.1
A55: 52 | B55: 安文来 | C55: 老庄子公社农机站 | D55: 男 | E55: 13022119501210**** | G55: 老庄子镇南王庄村 | H55: 71.3--85.12 | I55: 15 | J55: =I55*20 -> 300 | K55: 6 | L55: 1800 | M55: 2020.7.1
A56: 53 | B56: 殷晓岩 | C56: 老庄子公社农机站 | D56: 男 | E56: 13022119590710**** | G56: 老庄子镇南王庄村 | H56: 81.2--85.12 | I56: 5 | J56: =I56*20 -> 100 | K56: 6 | L56: 600 | M56: 2020.7.1
A57: 54 | B57: 李福来 | C57: 老庄子公社农机站 | D57: 男 | E57: 13022119440314**** | G57: 老庄子镇南王庄村 | H57: 76.9--85.10 | I57: 10 | J57: 200 | K57: 6 | L57: 1200 | M57: 2020.7.1
A58: 55 | B58: 安文成 | C58: 老庄子公社农机站 | D58: 男 | E58: 13022119530319**** | G58: 老庄子镇南王庄村 | H58: 75.8--83.12 | I58: 9 | J58: 180 | K58: 4 | L58: 720 | M58: 2020.7.1 | N58: 10月2日死亡，11月停发补贴。
A59: 56 | B59: 安殿国 | C59: 老庄子公社农机站 | D59: 男 | E59: 13022119530216**** | G59: 老庄子镇南王庄村 | H59: 78.3--85.12 | I59: 8 | J59: 160 | K59: 6 | L59: 960 | M59: 2020.7.1
A60: 57 | B60: 李春明 | C60: 老庄子公社农机站 | D60: 男 | E60: 13022119530210**** | G60: 老庄子镇老庄子村 | H60: 71.3--85.12 | I60: 15 | J60: 300 | K60: 6 | L60: 1800 | M60: 2020.7.1
A61: 58 | B61: 宣洪合 | C61: 老庄子公社农机站 | D61: 男 | E61: 13022119540718**** | G61: 老庄子镇老庄子村 | H61: 72.8--85.12 | I61: 14 | J61: 280 | K61: 6 | L61: 1680 | M61: 2020.7.1
A62: 59 | B62: 宋子良 | C62: 老庄子公社农机站 | D62: 男 | E62: 13022119400911**** | G62: 老庄子镇老庄子村 | H62: 74.11--85.12 | I62: 12 | J62: 240 | K62: 6 | L62: 1440 | M62: 2020.7.1
A63: 60 | B63: 张守合 | C63: 老庄子公社农机站 | D63: 男 | E63: 13022119370326**** | G63: 老庄子镇老庄子村 | H63: 73.4--85.12 | I63: 13 | J63: 260 | K63: 6 | L63: 1560 | M63: 2020.7.1
A64: 61 | B64: 张玉强 | C64: 老庄子公社农机站 | D64: 男 | E64: 13022119460628**** | G64: 老庄子镇老庄子村 | H64: 69.9--85.12 | I64: 17 | J64: =I64*20 -> 340 | K64: 6 | L64: 2040 | M64: 2020.7.1
A65: 62 | B65: 王守江 | C65: 小城子公社农机站 | D65: 男 | E65: 13022119550410**** | G65: 老庄子镇小城子村 | H65: 74.3--85.12 | I65: 12 | J65: =I65*20 -> 240 | K65: 6 | L65: 1440 | M65: 2020.7.1
A66: 63 | B66: 韩宝良 | C66: 小城子公社农机站 | D66: 男 | E66: 13022119540929**** | G66: 老庄子镇大树韩庄子村 | H66: 73.4--83.11 | I66: 11 | J66: 220 | K66: 6 | L66: 1320 | M66: 2020.7.1
A67: 64 | B67: 冯继文 | C67: 小城子公社农机站 | D67: 男 | E67: 13022119481117**** | G67: 老庄子镇大树韩庄子村 | H67: 80.2--85.12 | I67: 6 | J67: 120 | K67: 6 | L67: 720 | M67: 2020.7.1
A68: 65 | B68: 陈树全 | C68: 毛家坨农机站 | D68: 男 | E68: 13022119400501**** | G68: 老庄子镇杨信庄村 | H68: 74.11--84.11 | I68: 11 | J68: 220 | K68: 6 | L68: 1320 | M68: 2020.7.1
A69: 合计 | J69: =SUM(J4:J68) -> 13500 | L69: =SUM(L4:L68) -> 79360
A70: 唐山高新区三女河办事处2020.7.1--2020.12.31年满60周岁农机员生活补助核定公示表
A71: 填报单位（盖章）： | I71: 公示日期：
A72: 序号 | B72: 姓名 | C72: 原工作单位 | D72: 性别 | E72: 身份证号码 | F72: 银行卡号 | G72: 户口所在地（镇、村） | H72: 公益服务认定时间 | I72: 公益服务认定年限 | J72: 月补助金额（元） | K72: 补贴月数 | L72: 补助总金额 | M72: 执行时间 | N72: 备注
A73: 1 | B73: 裴玉阁 | C73: 唐山市丰润县三女河公社农机站 | D73: 男 | E73: 13022119361110**** | G73: 丰润区石各庄镇三女河村 | H73: 81.3--85.12 | I73: 5 | J73: =I73*20 -> 100 | K73: 6 | L73: =J73*K73 -> 600 | M73: 2020.7.1
A74: 2 | B74: 乔文申 | C74: 唐山市丰润县三女河公社农机站 | D74: 男 | E74: 13022119350813**** | G74: 丰润区石各庄镇三女河村 | H74: 81.3--85.12 | I74: 5 | J74: =I74*20 -> 100 | K74: 6 | L74: 600 | M74: 2020.7.1
A75: 3 | B75: 罗仕玉 | C75: 唐山市丰润县老庄子镇毛家坨公社农机站 | D75: 男 | E75: 13022119580905**** | G75: 丰润区老庄子镇毛三村 | H75: 76.10--85.12 | I75: 10 | J75: 200 | K75: 6 | L75: 1200 | M75: 2020.7.1
A76: 4 | B76: 姚玉山 | C76: 唐山市丰润县老庄子镇毛家坨公社农机站 | D76: 男 | E76: 13022119530920**** | G76: 丰润区老庄子镇白树庄 | H76: 75.11--85.12 | I76: 11 | J76: 220 | K76: 6 | L76: 1320 | M76: 2020.7.1
A77: 5 | B77: 张占国 | C77: 唐山市丰润县老庄子镇毛家坨公社农机站 | D77: 男 | E77: 13022119590208**** | G77: 丰润区老庄子镇毛四村 | H77: 77.3--83.6 | I77: 7 | J77: 140 | K77: 6 | L77: 840 | M77: 2020.7.1
A78: 6 | B78: 张贵林 | C78: 唐山市丰润县老庄子镇毛家坨公社农机站 | D78: 男 | E78: 13022119580719**** | G78: 丰润区老庄子镇毛三村 | H78: 77.8--85.12 | I78: 9 | J78: 180 | K78: 6 | L78: 1080 | M78: 2020.7.1
A79: 7 | B79: 陈庆台 | C79: 唐山市丰润县老庄子镇毛家坨公社农机站 | D79: 男 | E79: 13022119470507**** | G79: 丰润区老庄子镇崔家屯村 | H79: 78.2--85.12 | I79: 8 | J79: 160 | K79: 6 | L79: 960 | M79: 2020.7.1
A80: 8 | B80: 杨贵全 | C80: 唐山市丰润县老庄子镇毛家坨公社农机站 | D80: 男 | E80: 13022119580911**** | G80: 丰润区老庄子镇毛四村 | H80: 76.10--85.12 | I80: 10 | J80: 200 | K80: 6 | L80: 1200 | M80: 2020.7.1
A81: 9 | B81: 宋国会 | C81: 唐山市丰润县老庄子镇毛家坨公社农机站 | D81: 男 | E81: 13022119580910**** | G81: 丰润区老庄子镇范家坨村 | H81: 76.10--85.12 | I81: 10 | J81: 200 | K81: 6 | L81: 1200 | M81: 2020.7.1
A82: 10 | B82: 张尔华 | C82: 唐山市丰润县老庄子镇毛家坨公社农机站 | D82: 男 | E82: 13022119570826**** | G82: 丰润区老庄子镇毛二村 | H82: 76.2--85.12 | I82: 10 | J82: 200 | K82: 6 | L82: 1200 | M82: 2020.7.1
A83: 11 | B83: 兰友芳 | C83: 唐山市丰润县老庄子镇毛家坨公社农机站 | D83: 男 | E83: 13022119511023**** | G83: 丰润区老庄子镇毛二村 | H83: 75.5--85.12 | I83: 11 | J83: 220 | K83: 6 | L83: 1320 | M83: 2020.7.1
A84: 12 | B84: 苗印才 | C84: 唐山市丰润县三女河公社农机管理站 | D84: 男 | E84: 13022119551003**** | G84: 丰润区石各庄镇高庄子村 | H84: 74.11--85.12 | I84: 12 | J84: 240 | K84: 6 | L84: 1440 | M84: 2020.7.1
A85: 13 | B85: 张贵申 | C85: 唐山市丰润县老庄子镇毛家坨公社农机站 | D85: 男 | E85: 13022119511111**** | G85: 丰润区老庄子镇白树庄 | H85: 76.8--85.12 | I85: 10 | J85: 200 | K85: 6 | L85: 1200 | M85: 2020.7.1
A86: 14 | B86: 武志成 | C86: 唐山市丰润县老庄子镇毛家坨公社农机站 | D86: 男 | E86: 13022119540214**** | G86: 丰润区老庄子镇崔家屯村 | H86: 75.11--85.12 | I86: 11 | J86: 220 | K86: 6 | L86: 1320 | M86: 2020.7.1
A87: 15 | B87: 张秋才 | C87: 唐山市丰润县老庄子镇毛家坨公社农机站 | D87: 男 | E87: 13022119550613**** | G87: 丰润区老庄子镇姚家庄村 | H87: 74.9--85.12 | I87: 12 | J87: 240 | K87: 6 | L87: 1440 | M87: 2020.7.1
A88: 16 | B88: 徐文生 | C88: 唐山市丰润县老庄子镇毛家坨公社农机站 | D88: 男 | E88: 13022119490418**** | G88: 丰润区老庄子镇毛三村 | H88: 75.8--85.12 | I88: 11 | J88: 220 | K88: 6 | L88: 1320 | M88: 2020.7.1
A89: 17 | B89: 武相宏 | C89: 唐山市丰润县老庄子镇毛家坨公社农机站 | D89: 男 | E89: 13022119350219**** | G89: 丰润区老庄子镇崔家屯村 | H89: 74.12--85.12 | I89: 12 | J89: 240 | K89: 4 | L89: 960 | M89: 2020.7.1--10.31 | N89: 10月22日死亡，11月停发补贴
A90: 18 | B90: 祖连国 | C90: 唐山市丰润县老庄子镇毛家坨公社农机站 | D90: 男 | E90: 13022119550728**** | G90: 丰润区老庄子镇范家坨村 | H90: 75.9--85.12 | I90: 11 | J90: 220 | K90: 6 | L90: 1320 | M90: 2020.7.1
A91: 19 | B91: 徐宝玉 | C91: 唐山市丰润县老庄子镇毛家坨公社农机站 | D91: 男 | E91: 13022119580205**** | G91: 丰润区老庄子镇安家庄村 | H91: 76.10--85.12 | I91: 10 | J91: 200 | K91: 6 | L91: 1200 | M91: 2020.7.1
A92: 20 | B92: 庄宝成 | C92: 唐山市丰润县老庄子镇毛家坨公社农机站 | D92: 男 | E92: 13022119550822**** | G92: 丰润区老庄子镇崔家屯村 | H92: 76.7--85.12 | I92: 10 | J92: 200 | K92: 6 | L92: 1200 | M92: 2020.7.1
A93: 21 | B93: 徐长 | C93: 唐山市丰润县老庄子镇毛家坨公社农机站 | D93: 男 | E93: 13022119430223**** | G93: 丰润区老庄子镇范家坨村 | H93: 76.10--83.12 | I93: 8 | J93: 160 | K93: 6 | L93: 960 | M93: 2020.7.1
A94: 22 | B94: 郭建忠 | C94: 唐山市丰润县老庄子镇毛家坨公社农机站 | D94: 男 | E94: 13022119600210**** | G94: 丰润区老庄子镇崔家屯村 | H94: 78.3--83.8 | I94: 6 | J94: 120 | K94: 6 | L94: 720 | M94: 2020.7.1
A95: 23 | B95: 张德清 | C95: 唐山市丰润县老庄子镇毛家坨公社农机站 | D95: 男 | E95: 13022119470725**** | G95: 丰润区老庄子镇毛一村 | H95: 75.1--85.12 | I95: 11 | J95: 220 | K95: 6 | L95: 1320 | M95: 2020.7.1
A96: 24 | B96: 赵庆贵 | C96: 唐山市丰润县三女河公社农机站 | D96: 男 | E96: 13022119521116**** | G96: 丰润区石各庄镇方子里村 | H96: 74.12--85.12 | I96: 12 | J96: 240 | K96: 6 | L96: 1440 | M96: 2020.7.1
A97: 25 | B97: 邱玉合 | C97: 唐山市丰润县三女河公社农机站 | D97: 男 | E97: 13022119570809**** | G97: 丰润区石各庄镇方子里村 | H97: 75.9--85.12 | I97: 11 | J97: 220 | K97: 6 | L97: 1320 | M97: 2020.7.1
A98: 26 | B98: 刘宝英 | C98: 唐山市丰润县三女河公社农机站 | D98: 男 | E98: 13022119360323**** | G98: 丰润区石各庄镇韩家街村 | H98: 74.11--85.12 | I98: 12 | J98: 240 | K98: 6 | L98: 1440 | M98: 2020.7.1
A99: 27 | B99: 邱天明 | C99: 唐山市丰润县三女河公社农机站 | D99: 男 | E99: 13022119551124**** | G99: 丰润区石各庄镇韩家街村 | H99: 76.4--85.12 | I99: 10 | J99: 200 | K99: 6 | L99: 1200 | M99: 2020.7.1
A100: 28 | B100: 段保利 | C100: 唐山市丰润县三女河公社农机站 | D100: 男 | E100: 13022119530907**** | G100: 丰润区石各庄镇韩家街村 | H100: 76.3--85.12 | I100: 10 | J100: 200 | K100: 6 | L100: 1200 | M100: 2020.7.1
A101: 29 | B101: 刘得义 | C101: 唐山市丰润县三女河公社农机站 | D101: 男 | E101: 13022119550820**** | G101: 丰润区石各庄镇韩家街村 | H101: 75.3--85.12 | I101: 11 | J101: 220 | K101: 6 | L101: 1320 | M101: 2020.7.1
A102: 30 | B102: 刘宝山 | C102: 唐山市丰润县三女河公社农机站 | D102: 男 | E102: 13022119570808**** | G102: 丰润区石各庄镇邵家街村 | H102: 75.9--85.12 | I102: 11 | J102: 220 | K102: 6 | L102: 1320 | M102: 2020.7.1
A103: 31 | B103: 王海成(原乡镇、县已认定） | C103: 河北省秦皇岛市青龙满族自治县娄子石公社农机站 | D103: 男 | E103: 13022119471213**** | G103: 河北省唐山市丰润区石各庄镇三女河村新楼区南一排1号 | H103: 71.3--91.6 | I103: 20 | J103: 400 | K103: 6 | L103: 2400 | M103: 2020.7.1
A104: 32 | B104: 周铁厂 | C104: 唐山市丰润县三女河公社农机站 | D104: 男 | E104: 13022119541008**** | G104: 丰润区石各庄镇三女河村 | H104: 78.3--85.12 | I104: 8 | J104: 160 | K104: 6 | L104: 960 | M104: 2020.7.1
A105: 33 | B105: 王振永 | C105: 唐山市丰润县三女河公社农机站 | D105: 男 | E105: 13022119531209**** | G105: 丰润区石各庄镇三女河村 | H105: 79.4--85.12 | I105: 7 | J105: 140 | K105: 6 | L105: 840 | M105: 2020.7.1
A106: 34 | B106: 张俊如 | C106: 唐山市丰润县三女河公社农机站 | D106: 男 | E106: 13022119530103**** | G106: 丰润区石各庄镇三女河村 | H106: 78.3--85.12 | I106: 8 | J106: 160 | K106: 6 | L106: 960 | M106: 2020.7.1
A107: 35 | B107: 张国永 | C107: 唐山市丰润县三女河公社农机站 | D107: 男 | E107: 13022119540518**** | G107: 丰润区石各庄镇三女河村 | H107: 75.3--85.12 | I107: 11 | J107: 220 | K107: 6 | L107: 1320 | M107: 2020.7.1
A108: 36 | B108: 韩俊福 | C108: 唐山市丰润县三女河公社农机站 | D108: 男 | E108: 13022119560705**** | G108: 丰润区石各庄镇高庄子村 | H108: 75.3--85.12 | I108: 11 | J108: 220 | K108: 6 | L108: 1320 | M108: 2020.7.1
A109: 37 | B109: 韩青 | C109: 唐山市丰润县三女河公社农机站 | D109: 男 | E109: 13022119500916**** | G109: 丰润区石各庄镇高庄子村 | H109: 74.12--85.12 | I109: 12 | J109: 240 | K109: 6 | L109: 1440 | M109: 2020.7.1
A110: 38 | B110: 党恩召 | C110: 唐山市丰润县三女河公社农机站 | D110: 男 | E110: 13022119370122**** | G110: 丰润区石各庄镇三女河村 | H110: 75.7--85.12 | I110: 11 | J110: 220 | K110: 6 | L110: 1320 | M110: 2020.7.1
A111: 39 | B111: 张增 | C111: 唐山市丰润县三女河公社农机站 | D111: 男 | E111: 13022119550617**** | G111: 丰润区石各庄镇黄花港村 | H111: 75.3--85.12 | I111: 11 | J111: 220 | K111: 6 | L111: 1320 | M111: 2020.7.1
A112: 40 | B112: 马玉常 | C112: 唐山市丰润县三女河公社农机站 | D112: 男 | E112: 13022119550812**** | G112: 丰润区石各庄镇黄花港村 | H112: 76.4--85.12 | I112: 10 | J112: 200 | K112: 6 | L112: 1200 | M112: 2020.7.1
A113: 41 | B113: 刘少保 | C113: 唐山市丰润县三女河公社农机站 | D113: 男 | E113: 13022119530304**** | G113: 丰润区石各庄镇黄花港村 | H113: 74.12--85.12 | I113: 12 | J113: 240 | K113: 6 | L113: 1440 | M113: 2020.7.1
A114: 42 | B114: 白井国 | C114: 唐山市丰润县三女河公社农机站 | D114: 男 | E114: 13022119560112**** | G114: 丰润区石各庄镇黄花港村 | H114: 78.3--85.12 | I114: 8 | J114: =I114*20 -> 160 | K114: 6 | L114: 960 | M114: 2020.7.1
A115: 43 | B115: 刘金仲 | C115: 唐山市丰润县老庄子镇毛家坨公社农机站 | D115: 男 | E115: 13022119600702**** | G115: 丰润区老庄子镇姚家庄村 | H115: 78.8--85.12 | I115: 8 | J115: 160 | K115: 5 | L115: 800 | M115: 2020-08-01 | N115: 2020年7月2日年满60周岁，8月份开始发放生活补贴
A116: 合计 | J116: =SUM(J73:J115) -> 8680 | L116: =SUM(L73:L115) -> 51440
A117: 唐山高新区庆北办2020.7.1--2020.12.31年满60周岁农机员生活补助核定公示表
A118: 填报单位（盖章）： | I118: 公示日期：
A119: 序号 | B119: 姓名 | C119: 原工作单位 | D119: 性别 | E119: 身份证号码 | F119: 银行卡号 | G119: 户口所在地（镇办、村） | H119: 公益服务认定时间 | I119: 公益服务认定年限 | J119: 月补助金额（元） | K119: 补贴月数 | L119: 补助总金额 | M119: 执行时间 | N119: 备注
A120: 1 | B120: 刘福青 | C120: 郑庄子乡农机站 | D120: 男 | E120: 13020519580329**** | G120: 河北省唐山市高新区梁各庄 | H120: 78.3--85.12 | I120: 8 | J120: =I120*20 -> 160 | K120: 6 | L120: =J120*K120 -> 960 | M120: 2020.7.1
A121: 2 | B121: 杜全广 | C121: 郑庄子乡农机站 | D121: 男 | E121: 13020519560329**** | G121: 河北省唐山市高新区梁各庄 | H121: 78.3--85.12 | I121: 8 | J121: =I121*20 -> 160 | K121: 6 | L121: 960 | M121: 2020.7.1
A122: 3 | B122: 杜广文 | C122: 郑庄子乡农机站 | D122: 男 | E122: 13020519510906**** | G122: 河北省唐山市高新区梁各庄 | H122: 78.3--85.12 | I122: 8 | J122: 160 | K122: 6 | L122: 960 | M122: 2020.7.1
A123: 4 | B123: 孙丙红 | C123: 新庄子农机站 | D123: 女 | E123: 13020519580715**** | G123: 河北省唐山市高新区三益庄 | H123: 76.8--85.12 | I123: 10 | J123: 200 | K123: 6 | L123: 1200 | M123: 2020.7.1
A124: 5 | B124: 杨万金 | C124: 郑庄子乡农机站 | D124: 男 | E124: 13020519561016**** | G124: 河北省唐山市高新区前白寺口 | H124: 78.3--85.12 | I124: 8 | J124: 160 | K124: 6 | L124: 960 | M124: 2020.7.1
A125: 6 | B125: 罗仁兴 | C125: 老庄子农机站 | D125: 男 | E125: 13022119520716**** | G125: 河北省唐山市高新区詹官屯 | H125: 71.7--85.12 | I125: 15 | J125: 300 | K125: 6 | L125: 1800 | M125: 2020.7.1
A126: 7 | B126: 阚立春 | C126: 老庄子农机站 | D126: 男 | E126: 13022119530306**** | G126: 河北省唐山市高新区詹官屯 | H126: 74.7--85.12 | I126: 12 | J126: 240 | K126: 6 | L126: 1440 | M126: 2020.7.1
A127: 8 | B127: 孙长秀 | C127: 老庄子农机站 | D127: 男 | E127: 13022119521216**** | G127: 河北省唐山市高新区詹官屯 | H127: 75.5--85.12 | I127: 11 | J127: 220 | K127: 6 | L127: 1320 | M127: 2020.7.1
A128: 9 | B128: 鲁教江 | C128: 老庄子农机站 | D128: 男 | E128: 13022119480109**** | G128: 河北省唐山市高新区詹官屯 | H128: 69.10--85.12 | I128: 17 | J128: 340 | K128: 6 | L128: 2040 | M128: 2020.7.1
A129: 10 | B129: 罗文华 | C129: 老庄子农机站 | D129: 男 | E129: 13022119500719**** | G129: 河北省唐山市高新区詹官屯 | H129: 79.7--85.12 | I129: 7 | J129: 140 | K129: 6 | L129: 840 | M129: 2020.7.1
A130: 11 | B130: 陈连友 | C130: 老庄子农机站 | D130: 男 | E130: 13022119510827**** | G130: 河北省唐山市高新区詹官屯 | H130: 77.5--85.12 | I130: 9 | J130: 180 | K130: 6 | L130: 1080 | M130: 2020.7.1
A131: 12 | B131: 秦恩双 | C131: 郑庄子乡农机站 | D131: 男 | E131: 13020519560304**** | G131: 河北省唐山市高新区北白寺口 | H131: 78.3--85.12 | I131: 8 | J131: 160 | K131: 6 | L131: 960 | M131: 2020.7.1
A132: 13 | B132: 王连江 | C132: 郑庄子乡农机站 | D132: 男 | E132: 13020519551122**** | G132: 河北省唐山市高新区中白寺口 | H132: 78.3--85.12 | I132: 8 | J132: 160 | K132: 6 | L132: 960 | M132: 2020.7.1
A133: 14 | B133: 杜久余 | C133: 郑庄子乡农机站 | D133: 男 | E133: 13020519570822**** | G133: 河北省唐山市高新区刘家洼 | H133: 79.12--85.12 | I133: 7 | J133: 140 | K133: 6 | L133: 840 | M133: 2020.7.1
A134: 15 | B134: 杜久会 | C134: 郑庄子乡农机站 | D134: 男 | E134: 13020519540104**** | G134: 河北省唐山市高新区刘家洼 | H134: 79.12--85.12 | I134: 7 | J134: 140 | K134: 6 | L134: 840 | M134: 2020.7.1
A135: 16 | B135: 张富英 | C135: 郑庄子乡农机站 | D135: 女 | E135: 13020519590107**** | G135: 河北省唐山市高新区刘家洼 | H135: 79.12--85.12 | I135: 7 | J135: 140 | K135: 6 | L135: 840 | M135: 2020.7.1
A136: 17 | B136: 刘丽玲 | C136: 郑庄子乡农机站 | D136: 女 | E136: 13020519510331**** | G136: 河北省唐山市高新区刘家洼 | H136: 79.12--85.12 | I136: 7 | J136: 140 | K136: 6 | L136: 840 | M136: 2020.7.1
A137: 18 | B137: 宋福刚 | C137: 任各庄农机站 | D137: 男 | E137: 13022119530830**** | G137: 河北省唐山市高新区宋各庄 | H137: 76.8--85.12 | I137: 10 | J137: 200 | K137: 6 | L137: 1200 | M137: 2020.7.1
A138: 19 | B138: 肖振林 | C138: 任各庄农机站 | D138: 男 | E138: 13022119570403**** | G138: 河北省唐山市高新区宋各庄 | H138: 81.8--85.12 | I138: 5 | J138: 100 | K138: 6 | L138: 600 | M138: 2020.7.1
A139: 20 | B139: 李发 | C139: 任各庄农机站 | D139: 男 | E139: 13022119451120**** | G139: 河北省唐山市高新区宋各庄 | H139: 75.8--85.12 | I139: 11 | J139: 220 | K139: 6 | L139: 1320 | M139: 2020.7.1 | N139: 因瘫痪在床无法办理中国银行卡（信用社卡）
A140: 21 | B140: 刘光忠 | C140: 任各庄农机站 | D140: 男 | E140: 13022119370528**** | G140: 河北省唐山市高新区宋各庄 | H140: 72.9--84.12 | I140: 13 | J140: 260 | K140: 6 | L140: 1560 | M140: 2020.7.1
A141: 22 | B141: 宋永良 | C141: 任各庄农机站 | D141: 男 | E141: 13022119560822**** | G141: 河北省唐山市高新区宋各庄 | H141: 76.8--85.12 | I141: 10 | J141: 200 | K141: 6 | L141: 1200 | M141: 2020.7.1
A142: 23 | B142: 刘茂庆 | C142: 任各庄农机站 | D142: 男 | E142: 13022119590417**** | G142: 河北省唐山市高新区宋各庄 | H142: 80.8--85.12 | I142: 6 | J142: 120 | K142: 6 | L142: 720 | M142: 2020.7.1
A143: 24 | B143: 刘瑞林 | C143: 郑庄子乡农机站 | D143: 男 | E143: 13020519520918**** | G143: 河北省唐山市高新区郑庄子 | H143: 79.11--84.4 | I143: 5 | J143: 100 | K143: 6 | L143: 600 | M143: 2020.7.1
A144: 25 | B144: 杜得利 | C144: 郑庄子乡农机站 | D144: 男 | E144: 13020519491214**** | G144: 河北省唐山市高新区郑庄子 | H144: 81.3--85.12 | I144: 5 | J144: 100 | K144: 2 | L144: 200 | M144: 2020.7.1 | N144: 8月19日死亡，9月份停发补贴
A145: 26 | B145: 刘淑芬 | C145: 郑庄子乡农机站 | D145: 女 | E145: 13020519550905**** | G145: 河北省唐山市高新区郑庄子 | H145: 78.3--85.12 | I145: 8 | J145: 160 | K145: 6 | L145: 960 | M145: 2020.7.1
A146: 27 | B146: 刘立凤 | C146: 郑庄子乡农机站 | D146: 女 | E146: 13020519530504**** | G146: 河北省唐山市高新区郑庄子 | H146: 78.3--85.12 | I146: 8 | J146: 160 | K146: 6 | L146: 960 | M146: 2020.7.1
A147: 28 | B147: 窦素秋 | C147: 郑庄子乡农机站 | D147: 女 | E147: 13020519580929**** | G147: 河北省唐山市高新区梁各庄 | H147: 78.3--85.12 | I147: 8 | J147: 160 | K147: 6 | L147: 960 | M147: 2020.7.1
A148: 29 | B148: 张瑞芬 | C148: 丰润区姜家营农机站 | D148: 女 | E148: 130205195612051824 | G148: 河北省唐山市高新区刘家洼 | H148: 74.4-85.12 | I148: 11 | J148: 220 | K148: 6 | L148: 1320 | M148: 2020.7.1
A149: 合计 | J149: 5140 | L149: =SUM(L120:L148) -> 30440
A150: 唐山高新区街道办2020.7.1--2020.12.31年满60周岁农机员生活补助核定公示表
A151: 填报单位（盖章）： | I151: 公示日期：
A152: 序号 | B152: 姓名 | C152: 原工作单位 | D152: 性别 | E152: 身份证号码 | F152: 银行卡号 | G152: 户口所在地（镇办、村） | H152: 公益服务认定时间 | I152: 公益服务认定年限 | J152: 月补助金额（元） | K152: 补贴月数 | L152: 补助总金额 | M152: 执行时间 | N152: 备注
A153: 1 | B153: 王淑彩 | C153: 付家屯农机站 | D153: 女 | E153: 13020519520608**** | G153: 街道办付家屯村 | H153: 73.4--79.12 | I153: 7 | J153: =I153*20 -> 140 | K153: 6 | L153: =J153*K153 -> 840 | M153: 2020.7.1
A154: 2 | B154: 周连兴 | C154: 付家屯农机站 | D154: 男 | E154: 13020519550308**** | G154: 街道办新城子村 | H154: 77.3--81.6 | I154: 5 | J154: 100 | K154: 6 | L154: 600 | M154: 2020.7.1
A155: 3 | B155: 曹凤仲 | C155: 付家屯农机站 | D155: 男 | E155: 13020519481022**** | G155: 街道办新城子村 | H155: 69.9--85.5 | I155: 16 | J155: =I155*20 -> 320 | K155: 6 | L155: 1920 | M155: 2020.7.1
A156: 4 | B156: 张兆华 | C156: 付家屯农机站 | D156: 男 | E156: 13020519560206**** | G156: 街道办新城子村 | H156: 74.3--85.5 | I156: 12 | J156: 240 | K156: 6 | L156: 1440 | M156: 2020.7.1
A157: 5 | B157: 姜淑芹 | C157: 付家屯农机站 | D157: 女 | E157: 13020519520521**** | G157: 街道办新城子村 | H157: 73.4--85.5 | I157: 13 | J157: 260 | K157: 6 | L157: 1560 | M157: 2020.7.1
A158: 6 | B158: 刘铁平 | C158: 付家屯农机站 | D158: 男 | E158: 13020519520501**** | G158: 街道办新城子村 | H158: 78.4--85.12 | I158: 8 | J158: 160 | K158: 6 | L158: 960 | M158: 2020.7.1
A159: 7 | B159: 孙瑞忠 | C159: 任各庄农机站 | D159: 男 | E159: 13022119501226**** | G159: 街道办孙家庄村 | H159: 79.8--85.12 | I159: 7 | J159: 140 | K159: 6 | L159: 840 | M159: 2020.7.1
A160: 8 | B160: 朱学志 | C160: 任各庄农机站 | D160: 男 | E160: 13022119510907**** | G160: 街道办孙家庄村 | H160: 70.12--85.12 | I160: 16 | J160: 320 | K160: 6 | L160: 1920 | M160: 2020.7.1
A161: 9 | B161: 孙艳青 | C161: 任各庄农机站 | D161: 男 | E161: 13022119540502**** | G161: 河北省唐山市高新区孙家庄 | H161: 73.8--85.12 | I161: 13 | J161: 260 | K161: 6 | L161: 1560 | M161: 2020.7.1
A162: 10 | B162: 赵文亚 | C162: 付家屯农机站 | D162: 男 | E162: 13020519581111**** | G162: 街道办龙王庙村 | H162: 80.1--85.5 | I162: 6 | J162: 120 | K162: 6 | L162: 720 | M162: 2020.7.1
A163: 11 | B163: 庞文泽 | C163: 付家屯农机站 | D163: 男 | E163: 13020519570623**** | G163: 街道办龙王庙村 | H163: 75.8--85.5 | I163: 10 | J163: 200 | K163: 6 | L163: 1200 | M163: 2020.7.1
A164: 12 | B164: 刘焕新 | C164: 付家屯农机站 | D164: 男 | E164: 13020519531015**** | G164: 河北省唐山市高新区瓦官庄 | H164: 71.11--85.5 | I164: 14 | J164: 280 | K164: 6 | L164: 1680 | M164: 2020.7.1
A165: 13 | B165: 李绍平 | C165: 付家屯农机站 | D165: 男 | E165: 13020519550705**** | G165: 街道办瓦官庄村 | H165: 77.3--85.5 | I165: 9 | J165: 180 | K165: 6 | L165: 1080 | M165: 2020.7.1
A166: 14 | B166: 李洪良 | C166: 付家屯农机站 | D166: 男 | E166: 13020519560227**** | G166: 街道办付家屯村 | H166: 77.4--85.5 | I166: 9 | J166: 180 | K166: 6 | L166: 1080 | M166: 2020.7.1
A167: 15 | B167: 庞文田 | C167: 付家屯农机站 | D167: 男 | E167: 13020519511016**** | G167: 街道办富庄村 | H167: 74.2--85.5 | I167: 12 | J167: 240 | K167: 6 | L167: 1440 | M167: 2020.7.1
A168: 16 | B168: 许文峰 | C168: 付家屯农机站 | D168: 男 | E168: 13020519510510**** | G168: 街道办许鄄子村 | H168: 82.10--85.12 | I168: 4 | J168: 80 | K168: 6 | L168: 480 | M168: 2020.7.1
A169: 17 | B169: 岳继存 | C169: 付家屯农机站 | D169: 男 | E169: 13020519501213**** | G169: 街道办王鄄子村 | H169: 71.1--85.5 | I169: 15 | J169: 300 | K169: 6 | L169: 1800 | M169: 2020.7.1
A170: 18 | B170: 王亚东 | C170: 付家屯农机站 | D170: 男 | E170: 13020519510722**** | G170: 街道办王鄄子村 | H170: 70.8--85.5 | I170: 15 | J170: 300 | K170: 6 | L170: 1800 | M170: 2020.7.1
A171: 19 | B171: 刘焕臣 | C171: 刘家营农机站 | D171: 男 | E171: 13020619581006**** | G171: 街道办富庄村 | H171: 76.10--85.12 | I171: 10 | J171: 200 | K171: 6 | L171: 1200 | M171: 2020.7.1
A172: 20 | B172: 梁玉霞 | C172: 新庄子农机站 | D172: 女 | E172: 13020519550322**** | G172: 街道办许鄄子村 | H172: 74.5--82.12 | I172: 9 | J172: 180 | K172: 6 | L172: 1080 | M172: 2020.7.1
A173: 合计 | J173: =SUM(J153:J172) -> 4200 | L173: =SUM(L153:L172) -> 25200

Sheet 兽医
A1: 唐山高新区老庄子镇2020.7.1--2020.12.31年满60周岁基层兽医生活补助核定公示表
A2: 填报单位（盖章）： | J2: 公示日期：
A3: 序号 | B3: 姓名 | C3: 原工作单位 | D3: 性别 | E3: 身份证号码 | F3: 银行卡号 | G3: 户口所在地（镇办、村） | H3: 公益服务认定时间 | I3: 公益服务认定年限 | J3: 月补助金额（元） | K3: 补贴月数 | L3: 补助总金额 | M3: 执行时间 | N3: 备注
A4: 1 | B4: 董学恕 | C4: 老庄子兽医站毛家坨分站 | D4: 男 | E4: 13022119440504**** | G4: 老庄子镇后冯各庄村 | H4: 72.2--82.8 | I4: 11 | J4: =I4*20 -> 220 | K4: 6 | L4: =J4*K4 -> 1320 | M4: 2020.7.1
A5: 2 | B5: 赵贺成 | C5: 老庄子兽医站 （ 小城子） | D5: 男 | E5: 13022119520820**** | G5: 老庄子镇夏屋村 | H5: 70.9--82.11 | I5: 13 | J5: =I5*20 -> 260 | K5: 6 | L5: =J5*K5 -> 1560 | M5: 2020.7.1
A6: 3 | B6: 尹海 | C6: 原老庄子公社兽医站 | D6: 男 | E6: 13022119561202**** | G6: 老庄子镇沙雾庄村 | H6: 75.1--82.10 | I6: 8 | J6: 160 | K6: 6 | L6: 960 | M6: 2020.7.1
A7: 4 | B7: 郭希纯 | C7: 老庄子兽医站毛家坨分站 | D7: 男 | E7: 13022119510106**** | G7: 老庄子镇七王庄村 | H7: 72.2--82.10 | I7: 11 | J7: 220 | K7: 6 | L7: 1320 | M7: 2020.7.1
A8: 合计 | J8: =SUM(J4:J7) -> 860 | L8: =SUM(L4:L7) -> 5160
A9: 唐山高新区三女河办事处2020.7.1--2020.12.31年满60周岁基层兽医生活补助核定公示表
A10: 填报单位（盖章）： | J10: 公示日期：
A11: 序号 | B11: 姓名 | C11: 原工作单位 | D11: 性别 | E11: 身份证号码 | F11: 银行卡号 | G11: 户口所在地（镇、村） | H11: 公益服务认定时间 | I11: 公益服务认定年限 | J11: 月补助金额（元） | K11: 补贴月数 | L11: 补助总金额 | M11: 执行时间 | N11: 备注
A12: 1 | B12: 王贵濮 | C12: 河北省唐山市丰润县毛家坨公社兽医站 | D12: 男 | E12: 13022119371128**** | G12: 丰润区老庄子镇毛家坨一村 | H12: 71.3--82.10 | I12: 12 | J12: =I12*20 -> 240 | K12: 6 | L12: =J12*K12 -> 1440 | M12: 2020.7.1
A13: 2 | B13: 崔立华 | C13: 河北省唐山市丰润县三女河公社兽医站 | D13: 男 | E13: 13022119580820**** | G13: 丰润区石各庄镇邵家街村 | H13: 76.9--82.12 | I13: 7 | J13: =I13*20 -> 140 | K13: 6 | L13: =J13*K13 -> 840 | M13: 2020.7.1
A14: 3 | B14: 李及勇 | C14: 河北省唐山市丰润县三女河公社兽医站 | D14: 男 | E14: 13022119550228**** | G14: 丰润区石各庄镇韩家街村 | H14: 73.3--82.12 | I14: 10 | J14: 200 | K14: 6 | L14: 1200 | M14: 2020.7.1
A15: 4 | B15: 张杰 | C15: 河北省唐山市丰润县三女河公社兽医站 | D15: 男 | E15: 13022119551025**** | G15: 丰润区石各庄镇方子里村 | H15: 73.11--82.12 | I15: 10 | J15: 200 | K15: 6 | L15: 1200 | M15: 2020.7.1
A16: 5 | B16: 李国艾 | C16: 河北省唐山市丰润县三女河公社兽医站 | D16: 男 | E16: 13022119520530**** | G16: 丰润区石各庄镇高庄子村 | H16: 72.5--82.12 | I16: 11 | J16: 220 | K16: 6 | L16: 1320 | M16: 2020.7.1
A17: 6 | B17: 刘保禄 | C17: 河北省唐山市丰润县三女河公社兽医站 | D17: 男 | E17: 13022119511225**** | G17: 丰润区石各庄镇黄花港村 | H17: 71.2--82.12 | I17: 12 | J17: 240 | K17: 6 | L17: 1440 | M17: 2020.7.1
A18: 合计 | J18: =SUM(J12:J17) -> 1240 | L18: =SUM(L12:L17) -> 7440
A19: 唐山高新区庆北办2020.7.1--2020.12.31年满60周岁基层兽医生活补助核定公示表
A20: 填报单位（盖章）： | J20: 公示日期：
A21: 序号 | B21: 姓名 | C21: 原工作单位 | D21: 性别 | E21: 身份证号码 | F21: 银行卡号 | G21: 户口所在地（镇办、村） | H21: 公益服务认定时间 | I21: 公益服务认定年限 | J21: 月补助金额（元） | K21: 补贴月数 | L21: 补助总金额 | M21: 执行时间 | N21: 备注
A22: 1 | B22: 杜瑞荣 | C22: 郑庄子乡兽医站 | D22: 女 | E22: 13020519560801**** | G22: 河北省唐山市高新区刘家洼 | H22: 78.12--82.12 | I22: 5 | J22: 100 | K22: 6 | L22: =J22*K22 -> 600 | M22: 2020.7.1
A23: 合计 | J23: =SUM(J19:J22) -> 100 | L23: =SUM(L19:L22) -> 600
A24: 唐山高新区街道办2020.7.1--2020.12.31年满60周岁基层兽医生活补助核定公示表
A25: 填报单位（盖章）： | J25: 公示日期：
A26: 序号 | B26: 姓名 | C26: 原工作单位 | D26: 性别 | E26: 身份证号码 | F26: 银行卡号 | G26: 户口所在地（镇办、村） | H26: 公益服务认定时间 | I26: 公益服务认定年限 | J26: 月补助金额（元） | K26: 补贴月数 | L26: 补助总金额 | M26: 执行时间 | N26: 备注
A27: 1 | B27: 姜连全 | C27: 付家屯兽医站 | D27: 男 | E27: 13020519580409**** | G27: 街道办新城子村 | H27: 77.3--82.12 | I27: 6 | J27: 120 | K27: 6 | L27: =J27*K27 -> 720 | M27: 2020.7.1
A28: 2 | B28: 庞振林 | C28: 付家屯兽医站 | D28: 男 | E28: 13020519560724**** | G28: 街道办龙王庙村 | H28: 74.8--82.12 | I28: 9 | J28: =I28*20 -> 180 | K28: 6 | L28: =J28*K28 -> 1080 | M28: 2020.7.1
A29: 3 | B29: 田 禾 | C29: 付家屯兽医站 | D29: 男 | E29: 13020519490307**** | G29: 街道办龙王庙村 | H29: 68.4--82.12 | I29: 15 | J29: =I29*20 -> 300 | K29: 6 | L29: =J29*K29 -> 1800 | M29: 2020.7.1
A30: 4 | B30: 付文海 | C30: 付家屯兽医站 | D30: 男 | E30: 13020519561109**** | G30: 街道办付家屯村 | H30: 74.12--82.12 | I30: 9 | J30: 180 | K30: 6 | L30: 1080 | M30: 2020.7.1
A31: 合计 | J31: =SUM(J27:J30) -> 780 | L31: =SUM(L27:L30) -> 4680

Sheet 农技员
A1: 唐山高新区老庄子2020.7.1--2020.12.31年满60周岁农技员生活补助核定公示表
A2: 填报单位（盖章）： | J2: 公示日期：
A3: 序号 | B3: 姓名 | C3: 原工作单位 | D3: 性别 | E3: 身份证号码 | F3: 银行卡号 | G3: 户口所在地（镇办、村） | H3: 公益服务认定时间 | I3: 公益服务年限 | J3: 月补助金额（元） | K3: 补贴月数 | L3: 补助总金额 | M3: 执行时间 | N3: 备注
A4: 1 | B4: 党希友 | C4: 老庄子镇农技站 | D4: 男 | E4: 13022119530206**** | G4: 老庄子镇党家庄村 | H4: 76.5--99.12 | I4: 20 | J4: =I4*20 -> 400 | K4: 6 | L4: =J4*K4 -> 2400 | M4: 2020.7.1
A5: 2 | B5: 赵长生 | C5: 老庄子镇农技站 | D5: 男 | E5: 13022119600906**** | G5: 老庄子镇后冯各庄村 | H5: 83.04--88.12 | I5: 6 | J5: =I5*20 -> 120 | K5: 3 | L5: 360 | M5: 2020.10.1 | N5: 2020年9月6日年满60周岁，10月份开始发放生活补贴
A6: 合计 | J6: =SUM(J4:J5) -> 520 | L6: =SUM(L4:L5) -> 2760
A7: 唐山高新区三女河办事处2020.7.1--2020.12.31年满60周岁农技员生活补助核定公示表
A8: 填报单位（盖章）： | J8: 公示日期：
A9: 序号 | B9: 姓名 | C9: 原工作单位 | D9: 性别 | E9: 身份证号码 | F9: 银行卡号 | G9: 户口所在地（镇、村） | H9: 公益服务认定时间 | I9: 公益服务年限 | J9: 月补助金额（元） | K9: 补贴月数 | L9: 补助总金额 | M9: 执行时间 | N9: 备注
A10: 1 | B10: 张宝奇 | C10: 唐山市丰润县老庄子镇毛家坨公社农技站 | D10: 男 | E10: 13022119410219**** | G10: 丰润区老庄子镇姚家庄村 | H10: 78.9--99.12 | I10: 20 | J10: =I10*20 -> 400 | K10: 6 | L10: =J10*K10 -> 2400 | M10: 2020.7.1
A11: 2 | B11: 张尔章 | C11: 原毛家坨公社、毛家坨管理区农技服务站 | D11: 男 | E11: 13022119540912**** | G11: 丰润区老庄子镇毛一村 | H11: 78.9--98.9 | I11: 20 | J11: =I11*20 -> 400 | K11: 6 | L11: =J11*K11 -> 2400 | M11: 2020.7.1
A12: 3 | B12: 张贵安 | C12: 唐山市丰润县老庄子镇毛家坨公社农技站 | D12: 男 | E12: 13022119530416**** | G12: 丰润区老庄子镇毛三村 | H12: 72.2--92.3 | I12: 20 | J12: 400 | K12: 6 | L12: 2400 | M12: 2020.7.1
A13: 4 | B13: 王守春 | C13: 唐山市丰润县三女河公社农技站 | D13: 男 | E13: 13022119430325**** | G13: 丰润区石各庄镇邵家街村 | H13: 71.1--86.6 | I13: 16 | J13: 320 | K13: 6 | L13: 1920 | M13: 2020.7.1
A14: 5 | B14: 张润甲 | C14: 唐山市丰润县老庄子镇毛家坨公社 | D14: 男 | E14: 13022119550329**** | G14: 丰润区老庄子镇崔家屯村 | H14: 75.5--82.6 | I14: 8 | J14: 160 | K14: 6 | L14: 960 | M14: 2020.7.1
A15: 6 | B15: 于景海 | C15: 唐山市丰润县老庄子镇毛家坨公社农技服务站 | D15: 男 | E15: 13022119540327**** | G15: 丰润区老庄子镇崔家屯村 | H15: 85.3--98.4 | I15: 14 | J15: 280 | K15: 6 | L15: 1680 | M15: 2020.7.1
A16: 7 | B16: 刘春平 | C16: 唐山市丰润县老庄子镇毛家坨公社农业技术推广站 | D16: 男 | E16: 13022119530518**** | G16: 丰润区老庄子镇崔家屯村 | H16: 78.12--98.10 | I16: 20 | J16: 400 | K16: 6 | L16: 2400 | M16: 2020.7.1
A17: 8 | B17: 王振生 | C17: 唐山市丰润县老庄子镇三女河乡农业技术服务站 | D17: 男 | E17: 13022119330813**** | G17: 丰润区石各庄镇三女河村 | H17: 90.4--99.12 | I17: 10 | J17: 200 | K17: 6 | L17: 1200 | M17: 2020.7.1
A18: 合计 | J18: =SUM(J10:J17) -> 2560 | L18: =SUM(L10:L17) -> 15360
A19: 唐山高新区庆北办2020.7.1--2020.12.31年满60周岁农技员生活补助核定公示表
A20: 填报单位（盖章）： | J20: 公示日期：
A21: 序号 | B21: 姓名 | C21: 原工作单位 | D21: 性别 | E21: 身份证号码 | F21: 银行卡号 | G21: 户口所在地（镇办、村） | H21: 公益服务认定时间 | I21: 公益服务年限 | J21: 月补助金额（元） | K21: 补贴月数 | L21: 补助总金额 | M21: 执行时间 | N21: 备注
A22: 1 | B22: 杜得利 | C22: 郑庄子乡农技站 | D22: 男 | E22: 13020519491214**** | G22: 河北省唐山市高新区郑庄子 | H22: 91.1--99.12 | I22: 9 | J22: =I22*20 -> 180 | K22: 2 | L22: =J22*K22 -> 360 | M22: 2020.7.1 | N22: 8月19日死亡，9月份停发补贴
A23: 合计 | J23: 180 | L23: 360
A24: 唐山高新区街道办2020.7.1--2020.12.31年满60周岁农技员生活补助核定公示表
A25: 填报单位（盖章）： | J25: 公示日期：
A26: 序号 | B26: 姓名 | C26: 原工作单位 | D26: 性别 | E26: 身份证号码 | F26: 银行卡号 | G26: 户口所在地（镇办、村） | H26: 公益服务认定时间 | I26: 公益服务年限 | J26: 月补助金额（元） | K26: 补贴月数 | L26: 补助总金额 | M26: 执行时间 | N26: 备注
A27: 1 | B27: 赵永建 | C27: 付家屯公社 | D27: 男 | E27: 13020519540316**** | G27: 街道办龙王庙村 | H27: 76.8--97.10 | I27: 20 | J27: =I27*20 -> 400 | K27: 6 | L27: =J27*K27 -> 2400 | M27: 2020.7.1
A28: 2 | B28: 李敬恩 | C28: 付家屯公社 | D28: 男 | E28: 13020519481108**** | G28: 街道办瓦官庄村 | H28: 79.10--94.11 | I28: 16 | J28: =I28*20 -> 320 | K28: 6 | L28: =J28*K28 -> 1920 | M28: 2020.7.1
A29: 合计 | J29: =SUM(J27:J28) -> 720 | L29: =SUM(L27:L28) -> 4320

Sheet 汇总
A1: 高新区各镇办2020.7.1--2020.12.31年满60周岁“三员”人员补贴汇总表
A2: 项目 | B2: 农机员 | D2: 农技员 | F2: 基层兽医 | H2: 合计 | I2: 合计
B3: 人数 | C3: 金额 | D3: 人数 | E3: 金额 | F3: 人数 | G3: 金额 | H3: 总人数 | I3: 总金额
A4: 老庄子镇政府 | B4: 65 | C4: 79360 | D4: 2 | E4: 2760 | F4: 4 | G4: 5160 | H4: =B4+D4+F4 -> 71 | I4: =C4+E4+G4 -> 87280
A5: 三女河办事处 | B5: 43 | C5: 51440 | D5: 8 | E5: 15360 | F5: 6 | G5: 7440 | H5: =B5+D5+F5 -> 57 | I5: =C5+E5+G5 -> 74240
A6: 庆北办事处 | B6: 29 | C6: 30440 | D6: 1 | E6: 360 | F6: 1 | G6: 600 | H6: 31 | I6: =C6+E6+G6 -> 31400
A7: 街道办事处 | B7: 20 | C7: 25200 | D7: 2 | E7: 4320 | F7: 4 | G7: 4680 | H7: 26 | I7: =C7+E7+G7 -> 34200
A8: 合计 | B8: 157 | C8: =SUM(C4:C7) -> 186440 | D8: 13 | E8: 22800 | F8: 15 | G8: 17880 | H8: =SUM(H4:H7) -> 185 | I8: 227120
